[Event "Titled Tuesday Blitz March 28 Early 2023"]
[White "Drygalov, Andrey"]
[Black "Richter, Nils"]
[WhiteFideId "24171735"]
[BlackFideId "12990809"]
[WhiteElo "2471"]
[BlackElo "2381"]
[Result "1-0"]
[Round "04"]
[TimeControl "180+2"]
[Date "2023.03.28"]
[WhiteClock "0:00:20"]
[BlackClock "0:00:05"]

1. e4 {[%clk 0:03:00]}  c5 {[%clk 0:02:59]} 2. Nf3 {[%clk 0:03:00]}  Nf6 {[%clk 0:03:00]} 3. e5 {[%clk 0:02:58]}  Nd5 {[%clk 0:03:00]} 4. Nc3 {[%clk 0:02:59]}  Nxc3 {[%clk 0:03:00]} 5. dxc3 {[%clk 0:02:59]}  Nc6 {[%clk 0:03:00]} 6. Bf4 {[%clk 0:02:58]}  e6 {[%clk 0:03:00]} 7. Qd2 {[%clk 0:02:56]}  Be7 {[%clk 0:02:57]} 8. O-O-O {[%clk 0:02:51]}  O-O {[%clk 0:02:55]} 9. h4 {[%clk 0:02:51]}  a6 {[%clk 0:02:53]} 10. Bd3 {[%clk 0:02:51]}  b5 {[%clk 0:02:44]} 11. Bxh7+ {[%clk 0:02:44]}  Kxh7 {[%clk 0:02:43]} 12. Ng5+ {[%clk 0:02:44]}  Kg8 {[%clk 0:02:41]} 13. Qd3 {[%clk 0:02:44]}  g6 {[%clk 0:02:32]} 14. Qg3 {[%clk 0:02:22]}  Kg7 {[%clk 0:02:19]} 15. h5 {[%clk 0:02:20]}  Rh8 {[%clk 0:01:59]} 16. Nxf7 {[%clk 0:02:10]}  Kxf7 {[%clk 0:01:56]} 17. Qxg6+ {[%clk 0:02:11]}  Kf8 {[%clk 0:01:56]} 18. Bh6+ {[%clk 0:02:11]}  Rxh6 {[%clk 0:01:56]} 19. Qxh6+ {[%clk 0:02:12]}  Kg8 {[%clk 0:01:53]} 20. f4 {[%clk 0:02:06]}  Bf8 {[%clk 0:01:46]} 21. Qg6+ {[%clk 0:02:06]}  Kh8 {[%clk 0:01:45]} 22. Rh3 {[%clk 0:01:30]}  Qe7 {[%clk 0:01:41]} 23. Rg3 {[%clk 0:01:23]}  Qg7 {[%clk 0:01:35]} 24. Qd3 {[%clk 0:01:15]}  Qh6 {[%clk 0:01:35]} 25. Qe4 {[%clk 0:01:07]}  Rb8 {[%clk 0:01:06]} 26. Kb1 {[%clk 0:01:07]}  Ne7 {[%clk 0:01:05]} 27. Rg5 {[%clk 0:00:37]}  Bb7 {[%clk 0:01:05]} 28. Qe2 {[%clk 0:00:35]}  Bd5 {[%clk 0:01:03]} 29. Qg4 {[%clk 0:00:31]}  c4 {[%clk 0:00:51]} 30. Rh1 {[%clk 0:00:29]}  Nf5 {[%clk 0:00:49]} 31. Rh3 {[%clk 0:00:29]}  Bg7 {[%clk 0:00:36]} 32. Rg6 {[%clk 0:00:29]}  Qh7 {[%clk 0:00:34]} 33. Qe2 {[%clk 0:00:29]}  Bh6 {[%clk 0:00:27]} 34. g4 {[%clk 0:00:28]}  Ne7 {[%clk 0:00:24]} 35. g5 {[%clk 0:00:28]}  Nxg6 {[%clk 0:00:20]} 36. hxg6 {[%clk 0:00:28]}  Qg7 {[%clk 0:00:20]} 37. Qh2 {[%clk 0:00:21]}  Kg8 {[%clk 0:00:20]} 38. Rxh6 {[%clk 0:00:21]}  Be4 {[%clk 0:00:18]} 39. Rh7 {[%clk 0:00:20]}  Qxg6 {[%clk 0:00:18]} 40. Rh8+ {[%clk 0:00:20]}  Kf7 {[%clk 0:00:12]} 41. Rxb8 {[%clk 0:00:21]}  Qh7 {[%clk 0:00:07]} 42. Qxh7+ {[%clk 0:00:21]}  Bxh7 {[%clk 0:00:08]} 43. Kc1 {[%clk 0:00:21]}  Kg6 {[%clk 0:00:07]} 44. Rb7 {[%clk 0:00:19]}  Kf5 {[%clk 0:00:07]} 45. Rxd7 {[%clk 0:00:20]}  Bg6 {[%clk 0:00:08]} 46. Rd4 {[%clk 0:00:20]}  Bh5 {[%clk 0:00:08]} 47. a4 {[%clk 0:00:20]}  Bf3 {[%clk 0:00:08]} 48. axb5 {[%clk 0:00:21]}  axb5 {[%clk 0:00:07]} 49. b3 {[%clk 0:00:21]}  Bd5 {[%clk 0:00:07]} 50. Kb2 {[%clk 0:00:21]}  Kg6 {[%clk 0:00:05]} 51. Ka3 {[%clk 0:00:20]} 1-0


[Site "https://www.chess.com"]

[Event "Titled Tuesday Blitz March 28 Early 2023"]
[White "Domingo Nunez, Alejandro"]
[Black "Gukesh D"]
[WhiteFideId "22245561"]
[BlackFideId "46616543"]
[WhiteElo "2230"]
[BlackElo "2612"]
[Result "1-0"]
[Round "04"]
[TimeControl "180+2"]
[Date "2023.03.28"]
[WhiteClock "0:01:06"]
[BlackClock "0:00:51"]

1. e4 {[%clk 0:03:00]}  c5 {[%clk 0:03:00]} 2. d4 {[%clk 0:02:59]}  cxd4 {[%clk 0:03:00]} 3. c3 {[%clk 0:03:00]}  Nf6 {[%clk 0:02:57]} 4. e5 {[%clk 0:03:00]}  Nd5 {[%clk 0:02:58]} 5. Nf3 {[%clk 0:03:01]}  e6 {[%clk 0:02:58]} 6. cxd4 {[%clk 0:03:01]}  d6 {[%clk 0:02:58]} 7. a3 {[%clk 0:03:00]}  Nc6 {[%clk 0:02:58]} 8. Bd3 {[%clk 0:03:01]}  Be7 {[%clk 0:02:59]} 9. O-O {[%clk 0:03:02]}  O-O {[%clk 0:02:58]} 10. b4 {[%clk 0:03:02]}  a6 {[%clk 0:02:37]} 11. Re1 {[%clk 0:02:57]}  b5 {[%clk 0:02:36]} 12. Bb2 {[%clk 0:02:56]}  Bb7 {[%clk 0:02:35]} 13. Nbd2 {[%clk 0:02:57]}  dxe5 {[%clk 0:02:35]} 14. dxe5 {[%clk 0:02:55]}  Ndxb4 {[%clk 0:02:34]} 15. Bb1 {[%clk 0:02:37]}  Nd3 {[%clk 0:02:32]} 16. Qc2 {[%clk 0:02:37]}  Qb6 {[%clk 0:01:33]} 17. Qxd3 {[%clk 0:02:35]}  g6 {[%clk 0:01:34]} 18. Ne4 {[%clk 0:02:30]}  Rfd8 {[%clk 0:01:34]} 19. Qe2 {[%clk 0:02:30]}  Na5 {[%clk 0:01:32]} 20. Nf6+ {[%clk 0:02:12]}  Bxf6 {[%clk 0:01:32]} 21. exf6 {[%clk 0:02:13]}  Rac8 {[%clk 0:01:27]} 22. Be4 {[%clk 0:01:55]}  Nc4 {[%clk 0:01:24]} 23. Bxb7 {[%clk 0:01:45]}  Qxb7 {[%clk 0:01:24]} 24. Rad1 {[%clk 0:01:45]}  a5 {[%clk 0:01:08]} 25. Ne5 {[%clk 0:01:29]}  Nd6 {[%clk 0:00:56]} 26. Rxd6 {[%clk 0:01:08]}  Rxd6 {[%clk 0:00:56]} 27. Qe3 {[%clk 0:01:09]}  Kh8 {[%clk 0:00:51]} 28. Nxg6+ {[%clk 0:01:06]} 1-0


[Site "https://www.chess.com"]

[Event "Titled Tuesday Blitz March 28 Early 2023"]
[White "Olenik Campa, Rudi"]
[Black "Drozdowski, Kacper"]
[WhiteFideId "14633264"]
[BlackFideId "1136720"]
[WhiteElo "2249"]
[BlackElo "2497"]
[Result "0-1"]
[Round "04"]
[TimeControl "180+2"]
[Date "2023.03.28"]
[WhiteClock "0:01:18"]
[BlackClock "0:01:33"]

1. e4 {[%clk 0:03:00]}  c5 {[%clk 0:03:00]} 2. Nf3 {[%clk 0:03:00]}  e6 {[%clk 0:03:00]} 3. c4 {[%clk 0:02:59]}  Nc6 {[%clk 0:03:00]} 4. Be2 {[%clk 0:02:59]}  Nf6 {[%clk 0:03:00]} 5. Nc3 {[%clk 0:02:58]}  d5 {[%clk 0:02:58]} 6. exd5 {[%clk 0:02:57]}  exd5 {[%clk 0:02:58]} 7. d4 {[%clk 0:02:56]}  Be6 {[%clk 0:02:57]} 8. cxd5 {[%clk 0:02:49]}  Nxd5 {[%clk 0:02:57]} 9. Nxd5 {[%clk 0:02:49]}  Qxd5 {[%clk 0:02:55]} 10. dxc5 {[%clk 0:02:46]}  Bxc5 {[%clk 0:02:52]} 11. Qxd5 {[%clk 0:02:40]}  Bxd5 {[%clk 0:02:52]} 12. O-O {[%clk 0:02:40]}  O-O-O {[%clk 0:02:50]} 13. Bf4 {[%clk 0:02:38]}  Rhe8 {[%clk 0:02:47]} 14. Bb5 {[%clk 0:02:34]}  Re4 {[%clk 0:02:42]} 15. Bg5 {[%clk 0:02:14]}  f6 {[%clk 0:02:40]} 16. Rac1 {[%clk 0:02:12]}  Bb6 {[%clk 0:02:33]} 17. Bd2 {[%clk 0:02:00]}  Rg4 {[%clk 0:02:19]} 18. Kh1 {[%clk 0:01:48]}  Bxa2 {[%clk 0:02:04]} 19. Bxc6 {[%clk 0:01:45]}  bxc6 {[%clk 0:02:04]} 20. Rxc6+ {[%clk 0:01:46]}  Kb7 {[%clk 0:02:03]} 21. Rc3 {[%clk 0:01:43]}  Bd5 {[%clk 0:01:58]} 22. Be3 {[%clk 0:01:43]}  Rb4 {[%clk 0:01:49]} 23. Bxb6 {[%clk 0:01:42]}  Kxb6 {[%clk 0:01:43]} 24. b3 {[%clk 0:01:24]}  Rxb3 {[%clk 0:01:33]} 25. Rxb3+ {[%clk 0:01:19]}  Bxb3 {[%clk 0:01:33]} 26. Rb1 {[%clk 0:01:18]}  Rd1+ {[%clk 0:01:33]} 0-1


[Site "https://www.chess.com"]

[Event "Titled Tuesday Blitz March 28 Early 2023"]
[White "Jia, Haoxiang"]
[Black "Durarbayli, Vasif"]
[WhiteFideId "8602999"]
[BlackFideId "13402935"]
[WhiteElo "2594"]
[BlackElo "2543"]
[Result "0-1"]
[Round "04"]
[TimeControl "180+2"]
[Date "2023.03.28"]
[WhiteClock "0:00:04"]
[BlackClock "0:00:18"]

1. Nf3 {[%clk 0:02:58]}  c5 {[%clk 0:02:59]} 2. e4 {[%clk 0:02:46]}  d6 {[%clk 0:02:58]} 3. Bb5+ {[%clk 0:02:46]}  Nd7 {[%clk 0:02:57]} 4. O-O {[%clk 0:02:46]}  a6 {[%clk 0:02:57]} 5. Bd3 {[%clk 0:02:45]}  Ngf6 {[%clk 0:02:56]} 6. c3 {[%clk 0:02:45]}  e6 {[%clk 0:02:56]} 7. Bc2 {[%clk 0:02:46]}  c4 {[%clk 0:02:52]} 8. b4 {[%clk 0:02:38]}  Ne5 {[%clk 0:02:45]} 9. Nxe5 {[%clk 0:02:28]}  dxe5 {[%clk 0:02:45]} 10. d3 {[%clk 0:02:29]}  cxd3 {[%clk 0:02:39]} 11. Bxd3 {[%clk 0:02:20]}  Be7 {[%clk 0:02:38]} 12. Qe2 {[%clk 0:02:13]}  O-O {[%clk 0:02:36]} 13. Be3 {[%clk 0:02:13]}  Qc7 {[%clk 0:02:33]} 14. a4 {[%clk 0:02:12]}  b6 {[%clk 0:02:27]} 15. a5 {[%clk 0:02:10]}  b5 {[%clk 0:02:25]} 16. Nd2 {[%clk 0:02:08]}  Qxc3 {[%clk 0:02:12]} 17. Rab1 {[%clk 0:01:45]}  Rd8 {[%clk 0:02:02]} 18. Rb3 {[%clk 0:01:45]}  Qc6 {[%clk 0:02:01]} 19. Bb6 {[%clk 0:01:42]}  Bb7 {[%clk 0:01:21]} 20. Bxd8 {[%clk 0:01:37]}  Rxd8 {[%clk 0:01:22]} 21. Nb1 {[%clk 0:01:24]}  Rd4 {[%clk 0:01:20]} 22. Rc3 {[%clk 0:01:23]}  Qd7 {[%clk 0:01:13]} 23. Rfc1 {[%clk 0:01:21]}  Ne8 {[%clk 0:01:13]} 24. f3 {[%clk 0:00:11]}  Bxb4 {[%clk 0:01:09]} 25. Rb3 {[%clk 0:00:11]}  Bxa5 {[%clk 0:01:09]} 26. Qc2 {[%clk 0:00:11]}  Nd6 {[%clk 0:00:50]} 27. Kh1 {[%clk 0:00:10]}  h5 {[%clk 0:00:45]} 28. Bf1 {[%clk 0:00:09]}  h4 {[%clk 0:00:44]} 29. h3 {[%clk 0:00:09]}  f5 {[%clk 0:00:39]} 30. Nc3 {[%clk 0:00:09]}  Bxc3 {[%clk 0:00:32]} 31. Rxc3 {[%clk 0:00:09]}  fxe4 {[%clk 0:00:33]} 32. Rc7 {[%clk 0:00:09]}  Qd8 {[%clk 0:00:28]} 33. Qf2 {[%clk 0:00:07]}  exf3 {[%clk 0:00:25]} 34. gxf3 {[%clk 0:00:07]}  Qf6 {[%clk 0:00:20]} 35. Bg2 {[%clk 0:00:07]}  Bd5 {[%clk 0:00:19]} 36. Qe3 {[%clk 0:00:06]}  Nf5 {[%clk 0:00:18]} 37. Rc8+ {[%clk 0:00:05]}  Kh7 {[%clk 0:00:18]} 38. Qf2 {[%clk 0:00:04]}  Qg5 {[%clk 0:00:18]} 39. Re1 {[%clk 0:00:03]}  Rd2 {[%clk 0:00:18]} 40. Re2 {[%clk 0:00:04]}  Rxe2 {[%clk 0:00:18]} 0-1


[Site "https://www.chess.com"]

[Event "Titled Tuesday Blitz March 28 Early 2023"]
[White "Mitrabha, Guha"]
[Black "Alex_Sahakyan2006"]
[WhiteFideId "5057000"]
[WhiteElo "2507"]
[BlackElo "2592"]
[Result "1-0"]
[Round "04"]
[TimeControl "180+2"]
[Date "2023.03.28"]
[WhiteClock "0:00:24"]
[BlackClock "0:00:03"]

1. Nf3 {[%clk 0:02:50]}  g6 {[%clk 0:02:58]} 2. d4 {[%clk 0:02:51]}  Bg7 {[%clk 0:02:57]} 3. g3 {[%clk 0:02:50]}  d6 {[%clk 0:02:55]} 4. Bg2 {[%clk 0:02:51]}  Nd7 {[%clk 0:02:54]} 5. O-O {[%clk 0:02:51]}  e5 {[%clk 0:02:52]} 6. c3 {[%clk 0:02:50]}  Ne7 {[%clk 0:02:49]} 7. e4 {[%clk 0:02:50]}  O-O {[%clk 0:02:48]} 8. Re1 {[%clk 0:02:47]}  b6 {[%clk 0:02:44]} 9. a4 {[%clk 0:02:46]}  a5 {[%clk 0:02:43]} 10. Na3 {[%clk 0:02:46]}  Ba6 {[%clk 0:02:41]} 11. Nb5 {[%clk 0:02:42]}  h6 {[%clk 0:02:36]} 12. dxe5 {[%clk 0:02:36]}  dxe5 {[%clk 0:02:29]} 13. Qc2 {[%clk 0:02:34]}  c6 {[%clk 0:02:17]} 14. Nd6 {[%clk 0:02:28]}  Qc7 {[%clk 0:02:08]} 15. Rd1 {[%clk 0:02:28]}  Rad8 {[%clk 0:02:08]} 16. b3 {[%clk 0:01:42]}  Nc5 {[%clk 0:02:03]} 17. Nc4 {[%clk 0:01:35]}  Rxd1+ {[%clk 0:02:02]} 18. Qxd1 {[%clk 0:01:35]}  Bxc4 {[%clk 0:01:59]} 19. bxc4 {[%clk 0:01:35]}  Nxe4 {[%clk 0:01:59]} 20. Qc2 {[%clk 0:01:34]}  Nc5 {[%clk 0:02:00]} 21. Ba3 {[%clk 0:01:34]}  e4 {[%clk 0:01:44]} 22. Nd4 {[%clk 0:01:27]}  Rd8 {[%clk 0:01:21]} 23. Bxe4 {[%clk 0:01:16]}  Nxe4 {[%clk 0:01:08]} 24. Qxe4 {[%clk 0:01:17]}  c5 {[%clk 0:01:07]} 25. Nb5 {[%clk 0:01:11]}  Qe5 {[%clk 0:01:08]} 26. Qxe5 {[%clk 0:01:09]}  Bxe5 {[%clk 0:01:09]} 27. Re1 {[%clk 0:01:10]}  Bf6 {[%clk 0:01:07]} 28. Bc1 {[%clk 0:01:10]}  g5 {[%clk 0:00:59]} 29. f4 {[%clk 0:00:56]}  Kg7 {[%clk 0:00:50]} 30. Kg2 {[%clk 0:00:50]}  g4 {[%clk 0:00:45]} 31. Be3 {[%clk 0:00:43]}  Nf5 {[%clk 0:00:42]} 32. Kf2 {[%clk 0:00:44]}  h5 {[%clk 0:00:38]} 33. Re2 {[%clk 0:00:43]}  Rd1 {[%clk 0:00:35]} 34. Rd2 {[%clk 0:00:40]}  Ra1 {[%clk 0:00:34]} 35. Rd7 {[%clk 0:00:36]}  Ra2+ {[%clk 0:00:17]} 36. Bd2 {[%clk 0:00:36]}  Rxa4 {[%clk 0:00:18]} 37. Ke2 {[%clk 0:00:34]}  Rxc4 {[%clk 0:00:16]} 38. Rb7 {[%clk 0:00:33]}  Re4+ {[%clk 0:00:14]} 39. Kd3 {[%clk 0:00:33]}  Re6 {[%clk 0:00:15]} 40. c4 {[%clk 0:00:32]}  Nd4 {[%clk 0:00:10]} 41. Nc7 {[%clk 0:00:31]}  Re7 {[%clk 0:00:10]} 42. Bc3 {[%clk 0:00:28]}  Rd7 {[%clk 0:00:09]} 43. Ke4 {[%clk 0:00:26]}  Kg6 {[%clk 0:00:06]} 44. f5+ {[%clk 0:00:24]}  Kg7 {[%clk 0:00:05]} 45. Ne8+ {[%clk 0:00:24]}  Kf8 {[%clk 0:00:05]} 46. Rxd7 {[%clk 0:00:24]}  Kxe8 {[%clk 0:00:06]} 47. Rb7 {[%clk 0:00:24]}  a4 {[%clk 0:00:03]} 48. Rxb6 {[%clk 0:00:24]}  a3 {[%clk 0:00:03]} 49. Rxf6 {[%clk 0:00:24]} 1-0


[Site "https://www.chess.com"]

[Event "Titled Tuesday Blitz March 28 Early 2023"]
[White "Raahul V S"]
[Black "Harsha Bharathakoti"]
[WhiteFideId "25035525"]
[BlackFideId "5078776"]
[WhiteElo "2168"]
[BlackElo "2481"]
[Result "0-1"]
[Round "04"]
[TimeControl "180+2"]
[Date "2023.03.28"]
[WhiteClock "0:00:01"]
[BlackClock "0:00:04"]

1. c4 {[%clk 0:03:00]}  g6 {[%clk 0:02:56]} 2. Nc3 {[%clk 0:02:58]}  Bg7 {[%clk 0:02:56]} 3. g3 {[%clk 0:02:58]}  c5 {[%clk 0:02:51]} 4. Bg2 {[%clk 0:02:58]}  Nc6 {[%clk 0:02:51]} 5. e4 {[%clk 0:02:50]}  d6 {[%clk 0:02:49]} 6. Nge2 {[%clk 0:02:51]}  Nf6 {[%clk 0:02:41]} 7. O-O {[%clk 0:02:50]}  O-O {[%clk 0:02:42]} 8. d3 {[%clk 0:02:50]}  Ne8 {[%clk 0:02:32]} 9. Be3 {[%clk 0:02:48]}  Nd4 {[%clk 0:02:32]} 10. Qd2 {[%clk 0:02:44]}  Nc7 {[%clk 0:02:25]} 11. Bh6 {[%clk 0:02:35]}  Rb8 {[%clk 0:02:19]} 12. Nxd4 {[%clk 0:02:01]}  cxd4 {[%clk 0:02:18]} 13. Ne2 {[%clk 0:02:01]}  e5 {[%clk 0:02:14]} 14. Bxg7 {[%clk 0:01:57]}  Kxg7 {[%clk 0:02:15]} 15. f4 {[%clk 0:01:58]}  f6 {[%clk 0:01:54]} 16. f5 {[%clk 0:01:38]}  g5 {[%clk 0:01:48]} 17. h4 {[%clk 0:01:37]}  h6 {[%clk 0:01:48]} 18. Kf2 {[%clk 0:01:36]}  Bd7 {[%clk 0:01:43]} 19. Bf3 {[%clk 0:01:35]}  Be8 {[%clk 0:01:37]} 20. Rh1 {[%clk 0:01:33]}  Bf7 {[%clk 0:01:34]} 21. Rh3 {[%clk 0:01:29]}  Rh8 {[%clk 0:01:26]} 22. Rah1 {[%clk 0:01:27]}  Qe7 {[%clk 0:01:26]} 23. Ng1 {[%clk 0:01:19]}  b5 {[%clk 0:01:25]} 24. b3 {[%clk 0:01:19]}  bxc4 {[%clk 0:01:25]} 25. bxc4 {[%clk 0:01:19]}  Na6 {[%clk 0:01:23]} 26. Be2 {[%clk 0:01:13]}  Nc5 {[%clk 0:01:22]} 27. Kg2 {[%clk 0:00:57]}  Qb7 {[%clk 0:01:13]} 28. hxg5 {[%clk 0:00:56]}  hxg5 {[%clk 0:01:13]} 29. Rxh8 {[%clk 0:00:46]}  Rxh8 {[%clk 0:01:13]} 30. Rxh8 {[%clk 0:00:46]}  Kxh8 {[%clk 0:01:14]} 31. Nf3 {[%clk 0:00:47]}  Qe7 {[%clk 0:00:26]} 32. Qb4 {[%clk 0:00:38]}  Kg7 {[%clk 0:00:26]} 33. Nd2 {[%clk 0:00:31]}  Qc7 {[%clk 0:00:21]} 34. Nb3 {[%clk 0:00:29]}  Nd7 {[%clk 0:00:22]} 35. Qa5 {[%clk 0:00:17]}  Qb8 {[%clk 0:00:17]} 36. Qa6 {[%clk 0:00:13]}  Kf8 {[%clk 0:00:15]} 37. Qc6 {[%clk 0:00:09]}  Be8 {[%clk 0:00:14]} 38. Qd5 {[%clk 0:00:05]}  Bf7 {[%clk 0:00:10]} 39. Qc6 {[%clk 0:00:05]}  Ke7 {[%clk 0:00:11]} 40. Qa6 {[%clk 0:00:03]}  Be8 {[%clk 0:00:07]} 41. Bf3 {[%clk 0:00:01]}  Qc7 {[%clk 0:00:04]} 42. Be2 {[%clk 0:00:01]}  Nb8 {[%clk 0:00:04]} 0-1


[Site "https://www.chess.com"]

[Event "Titled Tuesday Blitz March 28 Early 2023"]
[White "Costachi, Mihnea"]
[Black "Dino_Ballecer"]
[WhiteFideId "1217518"]
[WhiteElo "2456"]
[BlackElo "2585"]
[Result "1-0"]
[Round "04"]
[TimeControl "180+2"]
[Date "2023.03.28"]
[WhiteClock "0:02:05"]
[BlackClock "0:00:56"]

1. Nc3 {[%clk 0:03:00]}  c5 {[%clk 0:02:55]} 2. Nf3 {[%clk 0:02:58]}  d6 {[%clk 0:02:53]} 3. d4 {[%clk 0:02:56]}  cxd4 {[%clk 0:02:53]} 4. Nxd4 {[%clk 0:02:57]}  Nf6 {[%clk 0:02:53]} 5. g3 {[%clk 0:02:57]}  Nc6 {[%clk 0:02:52]} 6. Bg2 {[%clk 0:02:57]}  Bd7 {[%clk 0:02:50]} 7. O-O {[%clk 0:02:57]}  g6 {[%clk 0:02:50]} 8. e4 {[%clk 0:02:57]}  Bg7 {[%clk 0:02:50]} 9. h3 {[%clk 0:02:56]}  Qc8 {[%clk 0:02:47]} 10. Nxc6 {[%clk 0:02:54]}  bxc6 {[%clk 0:02:44]} 11. Kh2 {[%clk 0:02:54]}  O-O {[%clk 0:02:44]} 12. Be3 {[%clk 0:02:52]}  Qc7 {[%clk 0:02:43]} 13. Qd2 {[%clk 0:02:52]}  Rab8 {[%clk 0:02:41]} 14. Rab1 {[%clk 0:02:51]}  e6 {[%clk 0:02:33]} 15. Bh6 {[%clk 0:02:45]}  d5 {[%clk 0:02:31]} 16. exd5 {[%clk 0:02:45]}  cxd5 {[%clk 0:02:30]} 17. Rfe1 {[%clk 0:02:40]}  Rfc8 {[%clk 0:02:15]} 18. Bf4 {[%clk 0:02:39]}  Qb6 {[%clk 0:02:09]} 19. Bxb8 {[%clk 0:02:38]}  Qxb8 {[%clk 0:02:10]} 20. Ne2 {[%clk 0:02:37]}  Ne4 {[%clk 0:02:07]} 21. Bxe4 {[%clk 0:02:36]}  dxe4 {[%clk 0:02:07]} 22. c3 {[%clk 0:02:37]}  Bc6 {[%clk 0:01:59]} 23. Rbd1 {[%clk 0:02:31]}  Be5 {[%clk 0:01:57]} 24. Nd4 {[%clk 0:02:29]}  Bd5 {[%clk 0:01:57]} 25. b3 {[%clk 0:02:28]}  h5 {[%clk 0:01:52]} 26. c4 {[%clk 0:02:28]}  Ba8 {[%clk 0:01:52]} 27. Qe3 {[%clk 0:02:28]}  h4 {[%clk 0:01:50]} 28. Ne2 {[%clk 0:02:24]}  hxg3+ {[%clk 0:01:50]} 29. fxg3 {[%clk 0:02:24]}  Kg7 {[%clk 0:01:46]} 30. Rd7 {[%clk 0:02:22]}  Rc7 {[%clk 0:01:47]} 31. Red1 {[%clk 0:02:20]}  Bc6 {[%clk 0:01:47]} 32. Rxc7 {[%clk 0:02:20]}  Qxc7 {[%clk 0:01:47]} 33. Nc3 {[%clk 0:02:15]}  f5 {[%clk 0:01:46]} 34. Nb5 {[%clk 0:02:14]}  Bxb5 {[%clk 0:01:39]} 35. cxb5 {[%clk 0:02:15]}  Kf6 {[%clk 0:01:20]} 36. h4 {[%clk 0:02:12]}  Qb6 {[%clk 0:00:59]} 37. Qg5+ {[%clk 0:02:07]}  Kf7 {[%clk 0:00:57]} 38. Rd7+ {[%clk 0:02:08]}  Kf8 {[%clk 0:00:56]} 39. Qe7+ {[%clk 0:02:05]} 1-0


[Site "https://www.chess.com"]

[Event "Titled Tuesday Blitz March 28 Early 2023"]
[White "Salinas Herrera, Pablo"]
[Black "Souleidis, Georgios"]
[WhiteFideId "3407128"]
[BlackFideId "4206827"]
[WhiteElo "2550"]
[BlackElo "2401"]
[Result "1-0"]
[Round "04"]
[TimeControl "180+2"]
[Date "2023.03.28"]
[WhiteClock "0:00:09"]
[BlackClock "0:00:04"]

1. d4 {[%clk 0:03:00]}  Nf6 {[%clk 0:02:59]} 2. Nf3 {[%clk 0:03:01]}  g6 {[%clk 0:02:59]} 3. Nbd2 {[%clk 0:03:01]}  d5 {[%clk 0:02:59]} 4. e3 {[%clk 0:03:01]}  Bg7 {[%clk 0:02:59]} 5. b4 {[%clk 0:03:02]}  O-O {[%clk 0:02:59]} 6. c4 {[%clk 0:03:02]}  b6 {[%clk 0:02:43]} 7. Bb2 {[%clk 0:02:56]}  c5 {[%clk 0:02:38]} 8. dxc5 {[%clk 0:02:56]}  bxc5 {[%clk 0:02:38]} 9. bxc5 {[%clk 0:02:57]}  Qa5 {[%clk 0:02:32]} 10. cxd5 {[%clk 0:02:55]}  Nxd5 {[%clk 0:02:22]} 11. Bxg7 {[%clk 0:02:52]}  Kxg7 {[%clk 0:02:22]} 12. Qc2 {[%clk 0:02:41]}  Nc6 {[%clk 0:02:04]} 13. Rc1 {[%clk 0:02:24]}  Rb8 {[%clk 0:01:51]} 14. Bc4 {[%clk 0:02:23]}  Nf6 {[%clk 0:01:15]} 15. O-O {[%clk 0:02:04]}  Qxc5 {[%clk 0:01:10]} 16. Qa4 {[%clk 0:01:22]}  Rb4 {[%clk 0:00:47]} 17. Qa3 {[%clk 0:01:21]}  Qb6 {[%clk 0:00:41]} 18. Bxf7 {[%clk 0:01:07]}  a5 {[%clk 0:00:19]} 19. Bb3 {[%clk 0:00:59]}  Ba6 {[%clk 0:00:19]} 20. Rfe1 {[%clk 0:00:55]}  Rd8 {[%clk 0:00:18]} 21. Nf1 {[%clk 0:00:36]}  Rd3 {[%clk 0:00:16]} 22. Rxc6 {[%clk 0:00:24]}  Qxc6 {[%clk 0:00:17]} 23. Ne5 {[%clk 0:00:25]}  Rdxb3 {[%clk 0:00:05]} 24. axb3 {[%clk 0:00:25]}  Qb5 {[%clk 0:00:04]} 25. Nf3 {[%clk 0:00:21]}  Bb7 {[%clk 0:00:04]} 26. Nd4 {[%clk 0:00:20]}  Qb6 {[%clk 0:00:04]} 27. Ng3 {[%clk 0:00:14]}  Bd5 {[%clk 0:00:04]} 28. h3 {[%clk 0:00:10]}  Bxb3 {[%clk 0:00:04]} 29. Nxb3 {[%clk 0:00:10]}  Rxb3 {[%clk 0:00:05]} 30. Qxe7+ {[%clk 0:00:10]}  Kg8 {[%clk 0:00:05]} 31. Rd1 {[%clk 0:00:10]}  Rb1 {[%clk 0:00:02]} 32. Rxb1 {[%clk 0:00:09]}  Qxb1+ {[%clk 0:00:03]} 33. Kh2 {[%clk 0:00:09]}  Qb6 {[%clk 0:00:04]} 34. e4 {[%clk 0:00:09]}  a4 {[%clk 0:00:04]} 35. e5 {[%clk 0:00:09]}  Nd5 {[%clk 0:00:03]} 36. Qe8+ {[%clk 0:00:09]}  Kg7 {[%clk 0:00:04]} 37. Qd7+ {[%clk 0:00:10]}  Kh6 {[%clk 0:00:03]} 38. Qxd5 {[%clk 0:00:10]}  a3 {[%clk 0:00:04]} 39. Qd2+ {[%clk 0:00:10]}  Kg7 {[%clk 0:00:04]} 40. e6 {[%clk 0:00:10]}  Qb2 {[%clk 0:00:04]} 41. Qd7+ {[%clk 0:00:08]}  Kh6 {[%clk 0:00:04]} 42. e7 {[%clk 0:00:07]}  a2 {[%clk 0:00:05]} 43. e8=Q {[%clk 0:00:08]}  a1=Q {[%clk 0:00:05]} 44. Qf8+ {[%clk 0:00:08]}  Qg7 {[%clk 0:00:06]} 45. Qfxg7+ {[%clk 0:00:08]}  Qxg7 {[%clk 0:00:03]} 46. Qxg7+ {[%clk 0:00:09]}  Kxg7 {[%clk 0:00:04]} 47. Nf1 {[%clk 0:00:09]} 1-0


[Site "https://www.chess.com"]